Cogmind - Beta 11 X5 @@@ ROGUE MODE // 2021.06.08 @ 20:25:42 Player: strategineer Result: Destroyed by G-34 Mercenary with Small Laser Performance ------------- Evolutions (1) 500 Regions Visited (2) 400 Robots Destroyed (16) 80 Value Destroyed (467) 467 Prototype IDs (2) 40 Alien Tech Used (0) 0 Bonus (0) 0 TOTAL SCORE: 1487 Bonus ------- None Cogmind --------- Core Integrity 0/400 Matter 300/300 Energy 92/100 System Corruption 0% Temperature Cool (16) Movement Treading (160) Location -9/Materials Parts ------- > --- POWER (1) -------- (None) > --- PROPULSION (2) --- Improved Treads > --- UTILITY (4) ------ Large Storage Unit Structural Scanner Signal Interpreter > --- WEAPON (2) ------- Small Laser > --- INVENTORY (15) --- Light Ion Engine Improved Treads Heat Sink High-capacity Storage Unit Large Battery (200) High-capacity Battery (250) Compact Battery (200) Compact Battery (200) Structural Scanner Structural Scanner High-powered Tractor Beam Rocket Launcher Rocket Launcher Peak State ------------ > --- POWER ------------ Light Ion Engine > --- PROPULSION ------- Improved Treads Improved Treads > --- UTILITY ---------- Large Storage Unit Structural Scanner Signal Interpreter Improved Propulsion Shielding > --- WEAPON ----------- Small Laser > --- INVENTORY -------- Light Ion Engine Improved Treads Improved Treads Heat Sink High-capacity Storage Unit Large Battery High-capacity Battery Compact Battery Structural Scanner Structural Scanner High-powered Tractor Beam Rocket Launcher Rocket Launcher [Rating: 14] Favorites ----------- Power Ion Engine Engine Ion Engine Propulsion Improved Treads Treads Improved Treads Leg Aluminum Leg Utility Signal Interpreter Device Structural Scanner Storage Large Storage Unit Processor Signal Interpreter Protection Improved Propulsion Shielding Weapon Light Assault Rifle Energy Gun Small Laser Ballistic Gun Light Assault Rifle Build | -11 -10 -9 ------- Run | Scr Mat Mat Slots Evolved 2 | . . 2 Power . | . . . Propulsion . | . . . Utility 2 | . . 2 Weapon . | . . . Parts Attached 19 | . 6 13 Power 2 | . . 2 Engine 2 | . . 2 Core . | . . . Reactor . | . . . Propulsion 7 | . 2 5 Treads 7 | . 2 5 Leg . | . . . Wheel . | . . . Hover . | . . . Flight . | . . . Utility 9 | . 4 5 Device 3 | . 1 2 Storage 3 | . 2 1 Processor 1 | . 1 . Hackware . | . . . Protection 2 | . . 2 Artifact . | . . . Weapon 1 | . . 1 Energy Gun 1 | . . 1 Energy Cannon . | . . . Ballistic Gun . | . . . Ballistic Cannon . | . . . Launcher . | . . . Special Weapon . | . . . Impact Weapon . | . . . Slashing Weapon . | . . . Piercing Weapon . | . . . Special Melee Weapon . | . . . Unidentified Prototypes . | . . . Parts Lost 10 | . . 10 Power 3 | . . 3 Propulsion 3 | . . 3 Utility 2 | . . 2 Weapon 2 | . . 2 Highest Loss Streak 5 | . . 5 Average Slot Usage (%) 85 | . 86 85 Engine 10 | . 14 8 Treads 19 | . 16 20 Leg 3 | . 11 . Device 9 | . 1 12 Storage 11 | . 14 11 Processor 7 | . . 11 Protection 3 | . . 4 Energy Gun 2 | . . 3 Ballistic Gun 17 | . 28 12 Naked Turns . | . . . Heaviest Build 29 | 12 13 29 Greatest Support 46 | 20 40 46 Greatest Overweight (x) 1 | . . 1 Average Overweight (x) . | . . . Largest Inventory Capacity 20 | . 20 15 Average Capacity 11 | . 8 13 Most Carried 14 | . 8 14 Average Carried 9 | . 7 11 Final Capacity 15 | 8 8 15 Final Carried 13 | 6 8 13 Class Distribution -------------------- 100% | Mutant Dominant Class ---------------- Mutant | -10/Materials Mutant | -9/Materials Resources | -11 -10 -9 ----------- Run | Scr Mat Mat Matter Collected 379 | 200 31 148 Remotely . | . . . Salvage Created 588 | . 81 507 Parts 35 | . 6 29 Haulers Intercepted . | . . . Recyclers Shooed 1 | . . 1 Parts Field Recycled . | . . . Retrieved Matter . | . . . Parts Self-Destructed . | . . . Prevented . | . . . Kills | -11 -10 -9 ------- Run | Scr Mat Mat Combat Hostiles Destroyed 15 | . 2 13 Melee 2 | . . 2 Guns 13 | . 2 11 Classes Destroyed 4 | . 1 3 Watcher 1 | . . 1 Swarmer 4 | . . 4 Grunt 10 | . 2 8 Sentry 1 | . . 1 Best Kill Streak 3 | . 2 3 Combat Bots Only 3 | . 2 3 Max Kills in Single Turn 1 | . 1 1 Gunslinging . | . . . Exploded . | . . . Melee 1 | . . 1 Uniques/NPCs Destroyed . | . . . Combat | -11 -10 -9 -------- Run | Scr Mat Mat Damage Taken 1783 | . 175 1608 Core 449 | . 43 406 Absorbed by Shields . | . . . Core Remaining (%) 91 | 100 82 . Volleys Fired 98 | . 17 81 Largest 2 | . 2 2 Hottest 40 | . 40 40 Shots Fired 127 | . 34 93 Gun 127 | . 34 93 Cannon . | . . . Launcher . | . . . Special . | . . . Kinetic 86 | . 34 52 Thermal 41 | . . 41 Explosive . | . . . Electromagnetic . | . . . Robot Hit Streak 13 | . 12 13 Robot Miss Streak 3 | . 2 3 Penetration Max . | . . . Secondary Targets 1 | . . 1 Max Gunslinging Chain 1 | . . 1 Shots Hit Robots 92 | . 25 67 Core Hits 37 | . 5 32 Critical Kills . | . . . Critical Parts Destroyed 1 | . 1 . Critical Strikes 1 | . 1 . Destroy 1 | . 1 . Melee Attacks . | . . . Impact . | . . . Slashing . | . . . Piercing . | . . . Sneak Attacks . | . . . Combat Hostiles . | . . . Follow-up Attacks . | . . . Damage Inflicted 911 | . 187 724 Guns 854 | . 187 667 Cannons . | . . . Explosions . | . . . Melee . | . . . Ramming 57 | . . 57 Kinetic 482 | . 187 295 Thermal 372 | . . 372 Explosive . | . . . Electromagnetic . | . . . Impact . | . . . Slashing . | . . . Piercing . | . . . Highest Corruption . | . . . Average Corruption . | . . . Corruption Purged . | . . . Overload Shots . | . . . Overflow Damage . | . . . Projectiles . | . . . Explosions . | . . . Melee . | . . . Knockbacks . | . . . Impact . | . . . Kinetic . | . . . Secondary . | . . . Self-Inflicted Damage . | . . . Shots . | . . . Rammed 25 | . . 25 Targets Rammed 27 | . . 27 Kicked . | . . . Crushed 2 | . . 2 Highest Temperature 18 | . 18 15 Average Temperature 7 | . 9 6 Received Heat Transfer 828 | . 96 732 Siege Activations . | . . . Robots Corrupted . | . . . Combat Hostiles . | . . . Parts Fried . | . . . Impact Corruptions . | . . . Robots Melted . | . . . Combat Hostiles . | . . . Parts Melted . | . . . Heat Transferred 850 | . . 850 Parts Sabotaged . | . . . Parts Stolen . | . . . Parts Stripped . | . . . Power Chain Reactions . | . . . Missiles Intercepted . | . . . Alert | -11 -10 -9 ------- Run | Scr Mat Mat Peak Influence 230 | . 80 230 Initial 33 | . . 33 Average 66 | . 21 87 Maximum Alert Level 1 | . . 1 Low Security (%) 96 | . 100 95 Level 1 3 | . . 4 Level 2 . | . . . Level 3 . | . . . Level 4 . | . . . Level 5 . | . . . High Security . | . . . Max Security . | . . . Squads Dispatched 2 | . 1 1 Investigation . | . . . Extermination . | . . . Reinforcement 2 | . 1 1 Assault . | . . . Garrison . | . . . Intercept . | . . . Construction Impeded . | . . . Haulers Reinforced . | . . . Cargo Convoy Interrupts . | . . . Stealth | -11 -10 -9 --------- Run | Scr Mat Mat Distress Signals 1 | . . 1 Communications Jammed . | . . . Distress Signals . | . . . Times Spotted 30 | . 5 25 Peak Tracking Total 8 | . 2 8 Tactical Retreats 3 | . . 3 Traps | -11 -10 -9 ------- Run | Scr Mat Mat Traps Triggered . | . . . Indirectly . | . . . Trap Hack Attempts . | . . . Triggered . | . . . Disarmed . | . . . Reprogrammed . | . . . Reused . | . . . Traps Extracted . | . . . Installed . | . . . Triggered . | . . . Machines | -11 -10 -9 ---------- Run | Scr Mat Mat Machines Disabled . | . . . Max in Single Turn . | . . . Machines Sabotaged . | . . . Garrisons Compromised . | . . . Overloaded Fab Kills . | . . . Fab Network Shutdowns . | . . . Hacking | -11 -10 -9 --------- Run | Scr Mat Mat Machines Accessed 3 | . 1 2 Terminals 2 | . 1 1 Fabricators . | . . . Repair Stations . | . . . Recycling Units 1 | . . 1 Scanalyzers . | . . . Garrison Access . | . . . Total Hacks 7 | . 2 5 Successful 4 | . 1 3 Failed 3 | . 1 2 Catastrophic 1 | . 1 . Database Lockouts . | . . . Manual 2 | . 1 1 Terminals 4 | . 2 2 Fabricators . | . . . Repair Stations . | . . . Recycling Units 3 | . . 3 Scanalyzers . | . . . Garrison Access . | . . . Terminal Hacks 2 | . 1 1 Prototype ID Bank 1 | . 1 . Zone Layout 1 | . . 1 Fabricator Hacks . | . . . Repair Station Hacks . | . . . Recycling Unit Hacks 2 | . . 2 Report Inventory 1 | . . 1 Retrieve Components 1 | . . 1 Scanalyzer . | . . . Garrison Access Hacks . | . . . Unauthorized Hacks . | . . . Terminals . | . . . Fabricators . | . . . Repair Stations . | . . . Recycling Units . | . . . Scanalyzers . | . . . Garrison Access . | . . . Data Cores Recovered . | . . . Used . | . . . Hacking Detections 1 | . 1 . Full Trace Events . | . . . Feedback Events . | . . . Feedback Blocked . | . . . Robot Schematics Acquired . | . . . Robots Built . | . . . Matter . | . . . Time . | . . . Total Robot Build Rating . | . . . Part Schematics Acquired . | . . . Parts Built . | . . . Matter . | . . . Time . | . . . Total Part Build Rating . | . . . Parts Repaired . | . . . Time . | . . . Parts Recycled . | . . . Recycled Matter . | . . . Retrieved Matter . | . . . Retrieved Components 7 | . . 7 Parts Scanalyzed . | . . . Part Schematics Acquired . | . . . Parts Damaged . | . . . Bothacking | -11 -10 -9 ------------ Run | Scr Mat Mat Used RIF Installer . | . . . Robots Hacked . | . . . Non-combat . | . . . Combat . | . . . Robot Hacks Applied . | . . . Relay Couplers Released . | . . . Robots Rewired . | . . . Allies Hacked . | . . . Hacks Repelled . | . . . Allies | -11 -10 -9 -------- Run | Scr Mat Mat Total Allies . | . . . Largest Group . | . . . Highest-Rated Group . | . . . Highest-Rated Ally . | . . . Total Orders . | . . . Ally Attacks . | . . . Total Damage . | . . . Kills . | . . . Allies Corrupted . | . . . Allies Melted . | . . . Intel | -11 -10 -9 ------- Run | Scr Mat Mat Robot Analysis Total . | . . . Derelict Logs Recovered . | . . . Drone Launches . | . . . Drone Recoveries . | . . . Exploration | -11 -10 -9 ------------- Run | Scr Mat Mat Turns Passed 936 | . 291 645 Spaces Moved 392 | 1 152 239 Core . | . . . Treads 311 | . 72 239 Legs 81 | 1 80 . Wheels . | . . . Hover . | . . . Flight . | . . . Fastest Speed 120 | 120 120 160 Average Speed 151 | 120 138 160 Slowest Speed 260 | 120 160 260 Overloaded Moves . | . . . Propulsion Burnouts . | . . . Robots Hopped . | . . . Cave-ins Triggered . | . . . Exploration Rate (%) 18 | 2 26 27 Regions Visited 2 Branch Regions . Pre-discovered Areas . | . . . Known Exits Taken 1 | . 1 . Unknown Exits Taken 1 | 1 . . Scrap Searched . | . . . Spaces Dug . | . . . Terrain Destroyed . | . . . Melee . | . . . Projectile . | . . . AOE . | . . . Terrain Rammed . | . . . Walls Destroyed . | . . . Machines Disabled . | . . . Actions | -11 -10 -9 --------- Run | Scr Mat Mat Total 607 | . 204 403 Wait 44 | . 21 23 Move 390 | . 151 239 Hop . | . . . Pick Up 17 | . 4 13 Fast Attach 7 | . 3 4 Attach 4 | . . 4 Detach 1 | . 1 . Swap 8 | . 3 5 Drop 11 | . 4 7 Fire 98 | . 17 81 Melee . | . . . Ram . | . . . Kick . | . . . Crush 27 | . . 27 Escape Stasis . | . . . Rewire . | . . . Trap . | . . . Miscellaneous . | . . . Route ------- -11/Scrapyard -10/Materials (discovered 2 exits: *Mat / [*Min]) -9/Materials (discovered 1 exit: *Min) History --------- Turn | Location | Event 1 | -11/Scrapyard | Discovered new exit (range 0) 1 | -11/Scrapyard | Entered Materials 64 | -10/Materials | Discovered new exit (range 16) 224 | -10/Materials | Discovered new exit (range 12) 291 | -10/Materials | Identified exit to Materials 292 | -10/Materials | Entered another Materials area 292 | -9/Materials | Evolved 2 slots: Utility x2 313 | -9/Materials | Build established: Mutant 724 | -9/Materials | Core integrity fell below 50% 728 | -9/Materials | Lost 5 parts (1p1n1u2w) 795 | -9/Materials | Discovered new exit (range 16) 827 | -9/Materials | Identified exit to Mines 890 | -9/Materials | Core integrity fell below 20% 937 | -9/Materials | Destroyed by G-34 Mercenary with Small Laser Last Messages --------------- 00854_ U-05 Engineer lays Concrete. 00865_ Imp. Treads destroyed. 00869_ G-34 Mercenary destroyed. 00873_ K-01 Serf collects debris. 00874_ Acquired 25 matter. 00876_ R-06 Scavenger collects Aluminum Leg. 00877_ K-01 Serf collects debris. 00898_ Imp. Treads destroyed. 00900_ G-47 Trooper destroyed. 00901_ U-05 Engineer lays Concrete. 00906_ G-34 Mercenary destroyed. 00908_ R-06 Scavenger collects Aluminum Leg. 00913_ R-06 Scavenger collects Heat Sink. 00921_ G-34 Mercenary destroyed. 00921_ R-06 Scavenger collects Aluminum Leg. 00924_ R-06 Scavenger collects Particle Gun. 00925_ Lgt. Ion Engine destroyed. 00929_ R-06 Scavenger collects Imp. Heat Sink. 00935_ Imp. Propulsion Shielding destroyed. 00937_ R-06 Scavenger collects Heat Sink. Map ----- +----------------------------------------------------+ | ?????????????????????????????????????????????????? | | ?????????????????????????????????????????????????? | | ?????????????????????????????????????????????????? | | ?????????????????????????????????????????????????? | | ?????????????????????????????????????????????????? | | ?????????????????????????????????????????????????? | | ?????????????????????????????????????????????????? | | ?????????????????????????????????????????????????? | | ?????????????????????????????????????????????????? | | ?????????????????????????????????????????????????? | | ?????????????????????????? ?????????????????????? | | ??????????????????????????w ?????????????????????? | | ?????????????????????????? ?????????????????????? | | ?????????????????????????? ?????????????????????? | | ?????????????????????????? ? ????????????????? | | ?????????????????????? # #####+????????????????? | | ??????????????????????####%### ????????????????? | | ??????????????????###### # ??????????????????? | | ??????????????????###### # ??????????????????? | | ??????????????????## # + ??????????????????? | | ??????????????????## # # ??????????????????? | | ??????????????????## # r # ??????????????????? | | ??????????????????## ##*r ##???????????????????? | | ??????????????????## ## ##???????????????????? | | ????????????? + ??## ## ##???????????????????? | | ????????????? # ? ## =*##@ ######### ???????? | | ?????????????## ####/## #############+???????? | | ????????????? # % g ???????? | | ????????????? # gg ???????? | | ????????????? # t ???????? | | ????????????? ###+####### #############????????? | | ????????????? # ##### ######### ????????? | | ????????????????????##""" k ##??????????????????? | | ????????????????????##" ##??????????????????? | | ????????????????????##"| ##??????????????????? | | ????????????????????##"" > ##??????????????????? | | ????????????????????##"| r ##??????????????????? | | ????????????????????##" ##??????????????????? | | ?????????????#########""" ########????????????? | | ?????????????############ #########????????????? | | ?????????????## # # T ##????????????? | | ?????????????## + + ##????????????? | | ???############ % # #""" ##????????????? | | ???############ # #"?" ##????????????? | | ???## ##+######## #"??? ##????????????? | | ##### ##%######## # ???? ##????????????? | | ##### # %%% ##???????????????????? | | / + %/ %%% ##???????????????????? | | ### # % % % ##???????????????????? | | ### """ """ #### #% ##???????????????????? | +----------------------------------------------------+ Best States ------------- Heat Dissipation 38 Energy Generation 10 Energy Capacity 250 Matter Stores 300 Matter Capacity 300 Sight Range 16 Terrain Scan Density 10 Armor Coverage 150 Propulsion Shielding 66 Evasion (%) 50 Recoil Reduction 2 Item Schematics ----------------- None Robot Schematics ------------------ None Fabricated ------------ Nothing Alien Tech Used ----------------- None Achievements -------------- None Challenges ------------ None Game ------ Seed AutogunHardenedHammer Manual? 0 Play Time 00:11:20 Cumulative 19.6 hours Start 2021.06.08 @ 20:15:45 End 2021.06.08 @ 20:25:42 Sessions 1 Manual Loads 0 Difficulty Rogue Special Mode None Game No. 24 Rogue 24 Adventurer 0 Explorer 0 Win Type - Total 0 Types 0/0/0/0/0/0/0/0/0 Lore% 7 Gallery% 31 Achievement% 21 Wizard Run 0 Options --------- ASCII 0 Keyboard 0 Movement Mouse Keybinds 1 Fullscreen 2 Font 24/Smallcaps Map View 76x50 Tactical HUD 1 Map Filters NONE Filters NONE Steam 1 RUN: 21f174b5-2b3a-4be6-89ab-faa18135638d